bitfinex/quotes_BTCUSD_20220120
["timestamp","ask_amount","ask_price","bid_price","bid_amount"]
[1642673500076,1.8848598,42150.0,42149.0,1.30573538]
[1642673500476,1.8848598,42150.0,42149.0,0.80573538]
[1642673500676,1.8848598,42150.0,42149.0,0.43629938]
[1642673502076,1.8848598,42150.0,42149.0,0.42229938]
[1642673502680,1.8848598,42150.0,42149.0,0.48529938]
[1642673503718,2.32703343,42150.0,42149.0,0.48529938]
[1642673503917,2.32703343,42150.0,42149.0,0.47229938]
[1642673504719,2.32703343,42150.0,42149.0,0.42229938]
[1642673504720,2.72246943,42150.0,42149.0,0.42229938]
[1642673504920,2.77036943,42150.0,42149.0,0.42229938]
[1642673505518,2.575128,42150.0,42149.0,0.42229938]
[1642673506019,2.563128,42150.0,42149.0,0.42229938]
[1642673506718,2.576128,42150.0,42149.0,0.42229938]
[1642673506918,2.528228,42150.0,42149.0,0.42229938]
[1642673507560,2.144792,42150.0,42149.0,0.42229938]
[1642673507769,2.528228,42150.0,42149.0,0.42229938]
[1642673508662,2.540228,42150.0,42149.0,0.42229938]
[1642673508862,2.527228,42150.0,42149.0,0.42229938]
[1642673509864,2.515228,42150.0,42149.0,0.42229938]
[1642673511217,2.755228,42150.0,42149.0,0.42229938]
[1642673512017,2.752728,42150.0,42149.0,0.42229938]
[1642673512823,2.765728,42150.0,42149.0,0.42229938]
[1642673514019,2.752728,42150.0,42149.0,0.42229938]
[1642673514864,2.765728,42150.0,42149.0,0.42229938]
[1642673516061,2.752728,42150.0,42149.0,0.42229938]
[1642673516861,2.765728,42150.0,42149.0,0.42229938]
[1642673517965,2.752728,42150.0,42149.0,0.42229938]
[1642673518813,2.83213909,42150.0,42149.0,0.42229938]
[1642673519614,2.94400909,42150.0,42149.0,0.42229938]
[1642673519814,3.04400909,42150.0,42149.0,0.42229938]
[1642673520016,3.03100909,42150.0,42149.0,0.42229938]
[1642673520214,2.93100909,42150.0,42149.0,0.42229938]
[1642673520413,3.03100909,42150.0,42149.0,0.42229938]
[1642673520617,2.93100909,42150.0,42149.0,0.42229938]
[1642673520815,3.04400909,42150.0,42149.0,0.42229938]
[1642673521019,3.04400909,42150.0,42141.0,0.45880119]
[1642673521020,0.00124351,42143.0,42141.0,0.42]
[1642673521218,0.431336,42142.0,42141.0,0.42]
[1642673522770,0.443336,42142.0,42141.0,0.42]
[1642673523275,0.75231571,42142.0,42141.0,0.42]
[1642673523470,0.74031571,42142.0,42141.0,0.4199]
[1642673524471,0.431336,42142.0,42141.0,0.4199]
[1642673524876,0.443336,42142.0,42141.0,0.4199]
[1642673525272,0.443336,42142.0,42141.0,0.4209695]
[1642673526116,0.383436,42142.0,42141.0,0.8409695]
[1642673526313,0.05124351,42143.0,42141.0,0.8409695]
[1642673526511,0.00124351,42143.0,42141.0,0.84124006]
[1642673526711,0.00124351,42143.0,42142.0,0.00012033]
[1642673527213,0.37971894,42143.0,42142.0,0.00012033]
[1642673527614,0.42971894,42143.0,42142.0,0.00012033]
[1642673528014,0.71272417,42143.0,42142.0,0.00012033]
[1642673528316,1.09616017,42143.0,42142.0,0.00012033]
[1642673528728,1.10716017,42143.0,42142.0,0.00012033]
[1642673529215,1.10654824,42143.0,42142.0,0.00012033]
[1642673529882,1.17478738,42143.0,42142.0,0.00012033]
[1642673530080,1.16378738,42143.0,42142.0,0.00012033]
[1642673530281,1.16378738,42143.0,42142.0,0.00101067]
[1642673530686,1.09554824,42143.0,42142.0,0.00101067]
[1642673530883,1.10754824,42143.0,42142.0,0.00101067]
[1642673531285,1.11992123,42143.0,42142.0,0.00101067]
[1642673531482,1.11992123,42143.0,42142.0,0.00122692]
[1642673531684,1.13179123,42143.0,42142.0,0.00122692]
[1642673531984,1.21979123,42143.0,42142.0,0.00122692]
[1642673532882,1.23279123,42143.0,42142.0,0.00122692]
[1642673534017,1.21979123,42143.0,42142.0,0.00122692]
[1642673534816,1.23079123,42143.0,42142.0,0.00122692]
[1642673535817,0.94839793,42143.0,42142.0,0.00122692]
[1642673536018,0.83941814,42143.0,42142.0,0.00122692]
[1642673536222,0.5589225,42143.0,42142.0,0.00122692]
[1642673536418,0.84405292,42143.0,42142.0,0.00122692]
[1642673536618,0.84461582,42143.0,42142.0,0.00122692]
[1642673536821,0.85950821,42143.0,42142.0,0.00122692]
[1642673537017,1.22816626,42143.0,42142.0,0.00122692]
[1642673538065,1.27288228,42143.0,42142.0,0.00122692]
[1642673538871,1.28388228,42143.0,42142.0,0.00122692]
[1642673540767,1.29888228,42143.0,42142.0,0.00122692]
[1642673541421,1.27288228,42143.0,42142.0,0.00122692]
[1642673542915,1.28588228,42143.0,42142.0,0.00122692]
[1642673543415,1.21779327,42143.0,42142.0,0.00122692]
[1642673544023,1.20479327,42143.0,42142.0,0.00122692]
[1642673544221,1.37141827,42143.0,42142.0,0.00122692]
[1642673544419,1.43834922,42143.0,42142.0,0.00122692]
[1642673544874,1.45034922,42143.0,42142.0,0.00122692]
[1642673545475,1.38341827,42143.0,42142.0,0.00122692]
[1642673545877,1.233436,42142.0,42141.0,0.25255431]
[1642673546078,1.233436,42142.0,42139.0,0.00121008]
[1642673546079,0.85,42141.0,42139.0,0.00121008]
[1642673546279,0.05937277,42139.0,42132.0,0.0002]
[1642673546478,0.00120552,42133.0,42132.0,0.0002]
[1642673546781,0.43254152,42133.0,42132.0,0.0002]
[1642673546976,0.77149544,42133.0,42132.0,0.0002]
[1642673547478,1.01056758,42133.0,42132.0,0.0002]
[1642673548277,1.40515887,42133.0,42132.0,0.0002]
[1642673548917,1.41615887,42133.0,42132.0,0.0002]
[1642673550118,1.40515887,42133.0,42132.0,0.0002]
[1642673550919,1.41915887,42133.0,42132.0,0.0002]
[1642673551518,1.65915887,42133.0,42132.0,0.00039664]
[1642673551717,1.42008673,42133.0,42132.0,0.00019664]
[1642673552119,1.40608673,42133.0,42132.0,0.00019664]
[1642673552776,1.41908673,42133.0,42132.0,0.00019664]
[1642673553577,1.35971473,42133.0,42132.0,0.00019664]
[1642673553777,1.07076081,42133.0,42132.0,0.00019664]
[1642673554277,1.05776081,42133.0,42132.0,0.00019664]
[1642673554877,1.06976081,42133.0,42132.0,0.00019664]
[1642673556217,1.05776081,42133.0,42132.0,0.00019664]
[1642673556419,1.05776081,42133.0,42130.0,0.00140682]
[1642673556420,0.33910552,42133.0,42130.0,0.00140682]
[1642673556620,0.29120552,42133.0,42130.0,0.00140682]
[1642673556819,0.307,42133.0,42131.0,0.00018909]
[1642673557218,0.257,42133.0,42131.0,0.03662492]
[1642673557422,0.257,42133.0,42132.0,1.11290889]
[1642673557622,0.257,42133.0,42132.0,1.49651679]
[1642673557820,0.257,42133.0,42132.0,1.54651679]
[1642673558019,0.24,42133.0,42132.0,1.54651679]
[1642673558522,0.24,42133.0,42132.0,0.4336079]
[1642673558920,0.24,42133.0,42132.0,0.4706079]
[1642673559721,0.24,42133.0,42132.0,0.74141857]
[1642673560167,0.24,42133.0,42132.0,0.70441857]
[1642673560967,0.24,42133.0,42132.0,1.16941857]
[1642673561166,0.24,42133.0,42132.0,0.78598257]
[1642673561567,0.24,42133.0,42132.0,1.16961521]
[1642673562072,0.24,42133.0,42132.0,1.12461521]
[1642673562467,0.24,42133.0,42132.0,0.85380454]
[1642673562869,0.24,42133.0,42132.0,0.92580454]
[1642673564123,0.24,42133.0,42132.0,0.85380454]
[1642673564925,0.24,42133.0,42132.0,0.91980454]
[1642673566224,0.24,42133.0,42132.0,0.85380454]
[1642673566424,0.24,42133.0,42132.0,0.43380454]
[1642673567027,0.24,42133.0,42132.0,0.46980454]
[1642673568171,0.24,42133.0,42132.0,0.43380454]
[1642673568972,0.24,42133.0,42132.0,0.46880454]
[1642673570073,0.24,42133.0,42132.0,0.43380454]
[1642673570874,0.24,42133.0,42132.0,0.49680454]
[1642673572127,0.24,42133.0,42132.0,0.43380454]
[1642673572929,0.241,42133.0,42132.0,0.44480454]
[1642673574139,0.24,42133.0,42132.0,0.38380454]
[1642673574989,0.24,42133.0,42132.0,0.44380454]
[1642673576289,0.24,42133.0,42132.0,0.38380454]
[1642673576893,0.24,42133.0,42132.0,0.44380454]
[1642673577293,0.24,42133.0,42132.0,0.86380454]
[1642673578095,0.24,42133.0,42132.0,0.80380454]
[1642673578923,0.24,42133.0,42132.0,0.86480454]
[1642673580230,0.29,42133.0,42132.0,0.80380454]
[1642673581026,0.29,42133.0,42132.0,0.46636854]
[1642673581027,0.291,42133.0,42132.0,0.46636854]
[1642673581226,0.291,42133.0,42132.0,0.04636854]
[1642673581627,0.291,42133.0,42132.0,0.04670132]
[1642673582881,0.3,42133.0,42132.0,0.04670132]
[1642673583178,0.683436,42133.0,42132.0,0.04670132]
[1642673583377,1.02928996,42133.0,42132.0,0.04670132]
[1642673583877,1.01928996,42133.0,42132.0,0.00070132]
[1642673584778,0.673436,42133.0,42132.0,0.00070132]
[1642673584983,0.692436,42133.0,42132.0,0.00070132]
[1642673585180,0.692436,42133.0,42132.0,0.00173713]
[1642673586223,1.01385711,42133.0,42132.0,0.00173713]
[1642673586430,1.01385711,42133.0,42132.0,0.00157073]
[1642673586926,1.02785711,42133.0,42132.0,0.00157073]
[1642673587130,1.23016204,42133.0,42132.0,0.00157073]
[1642673588226,1.21616204,42133.0,42132.0,0.00157073]
[1642673589026,1.23016204,42133.0,42132.0,0.00157073]
[1642673590277,1.21616204,42133.0,42132.0,0.00039373]
[1642673590875,0.87574093,42133.0,42132.0,0.00039373]
[1642673591077,0.90061093,42133.0,42132.0,0.00039373]
[1642673591277,0.698306,42133.0,42132.0,0.00039373]
[1642673591679,0.698306,42133.0,42132.0,0.00090569]
[1642673592279,0.685306,42133.0,42132.0,0.00090569]
[1642673593183,0.697306,42133.0,42132.0,0.00090569]
[1642673593479,0.94187096,42133.0,42132.0,0.00090569]
[1642673594319,0.92987096,42133.0,42132.0,0.00090569]
[1642673594922,1.04187096,42133.0,42132.0,0.00090569]
[1642673595324,1.04187096,42133.0,42132.0,0.00051196]
[1642673596323,1.02987096,42133.0,42132.0,0.00051196]
[1642673596523,1.02987096,42133.0,42132.0,0.00017906]
[1642673596924,1.04187096,42133.0,42132.0,0.00017906]
[1642673598184,1.02987096,42133.0,42132.0,0.00017906]
[1642673598986,1.10942759,42133.0,42132.0,0.00017906]
[1642673599185,1.20481298,42133.0,42132.0,0.00017906]
[1642673599385,1.10942759,42133.0,42132.0,0.00017906]
[1642673599588,1.204811,42133.0,42132.0,0.00017906]
[1642673599789,1.40399975,42133.0,42132.0,0.00017906]
[1642673600186,1.39199975,42133.0,42132.0,0.00017906]
[1642673600991,1.40399975,42133.0,42132.0,0.00017906]
[1642673601629,1.40399975,42133.0,42131.0,0.00038659]
[1642673601830,1.183436,42132.0,42131.0,0.00038659]
[1642673602029,1.82176591,42132.0,42131.0,0.00038659]
[1642673602231,1.83363591,42132.0,42131.0,0.00038659]
[1642673602629,1.03363591,42132.0,42131.0,0.00038659]
[1642673602831,0.9382525,42132.0,42131.0,0.00038659]
[1642673603031,0.9492525,42132.0,42131.0,0.00038659]
[1642673603430,1.0446048,42132.0,42131.0,0.00038659]
[1642673605075,1.0546048,42132.0,42131.0,0.00038659]
[1642673605376,1.0436048,42132.0,42131.0,0.00038659]
[1642673606478,1.0436048,42132.0,42131.0,0.00020113]
[1642673608380,1.1242948,42132.0,42131.0,0.00020113]
[1642673609023,1.0399425,42132.0,42131.0,0.00020113]
[1642673610320,0.9382525,42132.0,42131.0,0.00020113]
[1642673611122,0.9482525,42132.0,42131.0,0.00020113]
[1642673611723,0.118765,42131.0,42129.0,0.001598]
[1642673611923,1.41868537,42130.0,42129.0,0.001598]
[1642673612124,1.51868537,42130.0,42129.0,0.001598]
[1642673612382,1.51868537,42130.0,42129.0,0.0003878]
[1642673612981,1.54055537,42130.0,42129.0,0.0003878]
[1642673613182,0.90811289,42130.0,42129.0,0.0003878]
[1642673614181,0.84055537,42130.0,42129.0,0.0003878]
[1642673614382,0.83055537,42130.0,42129.0,0.0003878]
[1642673614882,0.89816647,42130.0,42129.0,0.0003878]
[1642673615082,0.90816647,42130.0,42129.0,0.0003878]
[1642673616325,0.89816647,42130.0,42129.0,0.0003878]
[1642673617124,0.90816647,42130.0,42129.0,0.0003878]
[1642673618426,1.32816647,42130.0,42129.0,0.0003878]
[1642673618827,1.41355599,42130.0,42129.0,0.0003878]
[1642673619032,1.42455599,42130.0,42129.0,0.0003878]
[1642673620282,0.85,42129.0,42128.0,0.0025]
[1642673620477,1.96339367,42129.0,42128.0,0.0025]
[1642673620677,2.13100477,42129.0,42128.0,0.00256876]
[1642673620880,2.18100477,42129.0,42128.0,0.00256876]
[1642673621076,2.19200477,42129.0,42128.0,0.00256876]
[1642673621681,2.20387477,42129.0,42128.0,0.00256876]
[1642673621877,2.26325577,42129.0,42128.0,0.00256876]
[1642673622278,2.25225577,42129.0,42128.0,0.00256876]
[1642673623078,2.26325577,42129.0,42128.0,0.00256876]
[1642673624243,2.25225577,42129.0,42128.0,0.00256876]
[1642673625044,2.26225577,42129.0,42128.0,0.00256876]
[1642673625641,1.41225577,42129.0,42128.0,0.00256876]
[1642673626351,1.40225577,42129.0,42128.0,0.00256876]
[1642673626552,1.40225577,42129.0,42128.0,0.00277152]
[1642673627154,1.41325577,42129.0,42128.0,0.00277152]
[1642673628374,1.40225577,42129.0,42128.0,0.00277152]
[1642673628576,1.82225577,42129.0,42128.0,0.00277152]
[1642673629178,1.83325577,42129.0,42128.0,0.00277152]
[1642673629480,2.36677741,42129.0,42128.0,0.00277152]
[1642673630076,2.36677741,42129.0,42128.0,0.00133552]
[1642673630280,2.35577741,42129.0,42128.0,0.00133552]
[1642673630781,2.20577741,42129.0,42128.0,0.00133552]
[1642673631236,2.21577741,42129.0,42128.0,0.00133552]
[1642673632045,2.36577741,42129.0,42128.0,0.00133552]
[1642673632640,2.31787741,42129.0,42128.0,0.00133552]
[1642673633037,2.33087741,42129.0,42128.0,0.00133552]
[1642673634338,2.35577741,42129.0,42128.0,0.00133552]
[1642673635178,2.46122452,42129.0,42128.0,0.00133552]
[1642673635980,2.36577741,42129.0,42128.0,0.00133552]
[1642673636178,1.233436,42128.0,42121.0,0.17244534]
[1642673636580,0.94875569,42127.0,42126.0,0.00098497]
[1642673636779,1.67587472,42127.0,42126.0,0.00098497]
[1642673636979,1.77587472,42127.0,42126.0,0.00098497]
[1642673637180,1.78787472,42127.0,42126.0,0.00098497]
[1642673637783,0.059388,42126.0,42122.0,0.00010314]
[1642673638084,0.44282657,42125.0,42122.0,0.00010314]
[1642673638284,0.28200597,42124.0,42122.0,0.00010314]
[1642673638483,0.433436,42123.0,42122.0,0.00010314]
[1642673638726,0.72094067,42123.0,42122.0,0.00010314]
[1642673638931,0.433436,42123.0,42122.0,0.00010314]
[1642673639127,0.494336,42123.0,42122.0,0.00010314]
[1642673639528,0.56208405,42123.0,42122.0,0.00010314]
[1642673640128,0.68086879,42123.0,42122.0,0.00010314]
[1642673640531,0.85,42122.0,42121.0,0.1672558]
[1642673640733,1.34201727,42122.0,42120.0,0.00113899]
[1642673640932,1.23466309,42121.0,42120.0,0.00113899]
[1642673641130,1.45031114,42121.0,42120.0,0.00113899]
[1642673641431,0.60031114,42121.0,42119.0,0.00115971]
[1642673641833,0.41774805,42120.0,42119.0,0.00115971]
[1642673642032,0.99908405,42120.0,42119.0,0.00115971]
[1642673642481,0.99908405,42120.0,42118.0,0.0002]
[1642673642678,0.733436,42119.0,42118.0,0.0002]
[1642673642977,0.431336,42119.0,42118.0,0.00026876]
[1642673643382,0.73396278,42119.0,42118.0,0.00026876]
[1642673644581,0.80172968,42119.0,42118.0,0.00026876]
[1642673644780,0.90017968,42119.0,42118.0,0.00026876]
[1642673645183,1.27637694,42119.0,42118.0,0.00026876]
[1642673645781,0.94417968,42119.0,42118.0,0.00026876]
[1642673645983,1.27388513,42119.0,42118.0,0.00026876]
[1642673646241,0.94417968,42119.0,42118.0,0.00026876]
[1642673646639,0.87665853,42119.0,42118.0,0.00049596]
[1642673647040,0.90041544,42119.0,42118.0,0.00049596]
[1642673647240,0.91141544,42119.0,42118.0,0.00049596]
[1642673647840,1.14180143,42119.0,42118.0,0.00049596]
[1642673648439,1.13080143,42119.0,42118.0,0.00049596]
[1642673648644,2.40746002,42119.0,42118.0,0.00049596]
[1642673648943,2.01656616,42119.0,42118.0,0.00049596]
[1642673649141,2.02756616,42119.0,42118.0,0.00049596]
[1642673649341,2.09535626,42119.0,42118.0,0.00049596]
[1642673649741,2.02756616,42119.0,42118.0,0.00049596]
[1642673649976,1.49455339,42119.0,42118.0,0.00049596]
[1642673650185,1.44665339,42119.0,42118.0,0.00049596]
[1642673650374,0.95376739,42119.0,42118.0,0.00049596]
[1642673650774,0.53376739,42119.0,42118.0,0.00049596]
[1642673651175,0.55576739,42119.0,42118.0,0.00049596]
[1642673651574,0.55552164,42119.0,42118.0,0.00049596]
[1642673651975,0.55552164,42119.0,42118.0,0.00029596]
[1642673652374,0.53352164,42119.0,42118.0,0.00029596]
[1642673652578,0.77352164,42119.0,42118.0,0.00029596]
[1642673653077,0.79452164,42119.0,42118.0,0.00029596]
[1642673653930,1.17795764,42119.0,42118.0,0.00029596]
[1642673654330,1.40283748,42119.0,42118.0,0.00029596]
[1642673655137,1.41883748,42119.0,42118.0,0.00029596]
[1642673655931,1.17295764,42119.0,42118.0,0.00029596]
[1642673657134,1.19295764,42119.0,42118.0,0.00029596]
[1642673657379,1.24295764,42119.0,42118.0,0.00029596]
[1642673658379,1.20695764,42119.0,42118.0,0.00029596]
[1642673658580,1.15695764,42119.0,42118.0,0.00029596]
[1642673659281,1.20895764,42119.0,42118.0,0.00029596]
[1642673660482,1.15695764,42119.0,42118.0,0.00029596]
[1642673660882,1.57695764,42119.0,42118.0,0.00029596]
[1642673661132,1.62895764,42119.0,42118.0,0.00029596]
[1642673661337,1.24552164,42119.0,42118.0,0.00029596]
[1642673662135,1.62895764,42119.0,42118.0,0.00029596]
[1642673662335,1.57695764,42119.0,42118.0,0.00029596]
[1642673662735,1.57695764,42119.0,42118.0,0.00023167]
[1642673663136,1.63195764,42119.0,42118.0,0.00023167]
[1642673664338,1.24852164,42119.0,42118.0,0.00023167]
[1642673664636,1.19352164,42119.0,42118.0,0.00023167]
[1642673665280,1.24952164,42119.0,42118.0,0.00023167]
[1642673666586,1.19352164,42119.0,42118.0,0.00023167]
[1642673667281,1.25152164,42119.0,42118.0,0.00023167]
[1642673667884,1.63495764,42119.0,42118.0,0.00023167]
[1642673668286,1.68495764,42119.0,42118.0,0.00023167]
[1642673668490,1.62695764,42119.0,42118.0,0.00023167]
[1642673669131,1.67995764,42119.0,42118.0,0.00023167]
[1642673670331,1.68634964,42119.0,42118.0,0.00023167]
[1642673671137,1.70834964,42119.0,42118.0,0.00023167]
[1642673672478,1.68634964,42119.0,42118.0,0.00023167]
[1642673673278,1.73334964,42119.0,42118.0,0.00023167]
[1642673674378,1.68634964,42119.0,42118.0,0.00023167]
[1642673675181,1.73334964,42119.0,42118.0,0.00023167]
[1642673676429,1.68634964,42119.0,42118.0,0.00023167]
[1642673677230,1.74034964,42119.0,42118.0,0.00023167]
[1642673678329,1.68634964,42119.0,42118.0,0.00023167]
[1642673678733,1.73634964,42119.0,42118.0,0.00023167]
[1642673679129,1.79034964,42119.0,42118.0,0.00023167]
[1642673680378,1.73634964,42119.0,42118.0,0.00023167]
[1642673681178,1.78434964,42119.0,42118.0,0.00023167]
[1642673681680,1.73434964,42119.0,42118.0,0.00023167]
[1642673682280,1.90286678,42119.0,42118.0,0.00023167]
[1642673682580,1.85486678,42119.0,42118.0,0.00023167]
[1642673682981,1.79547478,42119.0,42118.0,0.00023167]
[1642673683281,1.84347478,42119.0,42118.0,0.00023167]
[1642673684432,1.79547478,42119.0,42118.0,0.00023167]
[1642673685232,1.85047478,42119.0,42118.0,0.00017141]
[1642673686435,1.79547478,42119.0,42116.0,0.00143013]
[1642673686645,0.34891809,42118.0,42116.0,0.00021972]
[1642673686837,0.37198623,42118.0,42116.0,0.00143013]
[1642673687035,0.01186,42123.0,42116.0,0.00143013]
[1642673687236,0.05,42118.0,42116.0,0.00143013]
[1642673687689,0.4,42117.0,42112.0,0.47143278]
[1642673687887,0.04841488,42118.0,42112.0,0.31882109]
[1642673688087,0.0373135,42110.0,42109.0,0.57632107]
[1642673688294,0.0373135,42110.0,42109.0,0.54516382]
[1642673688488,0.0373135,42110.0,42109.0,0.54531853]
[1642673688988,0.0373135,42110.0,42109.0,0.38364971]
[1642673689194,0.0373135,42110.0,42109.0,0.45564971]
[1642673690590,0.0373135,42110.0,42109.0,0.38364971]
[1642673691250,0.0373135,42110.0,42109.0,0.45964971]
[1642673691655,0.0373135,42110.0,42109.0,0.46004452]
[1642673692453,0.0373135,42110.0,42109.0,0.38404452]
[1642673692652,0.2130395,42110.0,42109.0,0.38404452]
[1642673692851,0.2130395,42110.0,42109.0,0.00054952]
[1642673693050,0.175726,42110.0,42108.0,0.90343602]
[1642673693253,0.187726,42110.0,42109.0,0.008]
[1642673694052,0.427726,42110.0,42109.0,0.008]
[1642673694251,0.427726,42110.0,42109.0,0.12925248]
[1642673694652,0.415726,42110.0,42109.0,0.12125248]
[1642673695294,0.423726,42110.0,42109.0,0.12725248]
[1642673696496,0.415726,42110.0,42109.0,0.12159265]
[1642673697296,0.426726,42110.0,42109.0,0.12759265]
[1642673698199,0.33242049,42110.0,42109.0,0.87759265]
[1642673698400,0.33242049,42110.0,42109.0,0.50508765]
[1642673698635,0.32142049,42110.0,42109.0,0.66675763]
[1642673699240,0.32142049,42110.0,42109.0,0.72275763]
[1642673700438,0.32142049,42110.0,42109.0,0.66675763]
[1642673701236,0.32142049,42110.0,42109.0,0.71175763]
[1642673702479,0.32142049,42110.0,42109.0,0.66675763]
[1642673703281,0.32142049,42110.0,42109.0,0.72575763]
[1642673704482,0.32142049,42110.0,42109.0,0.66675763]
[1642673705183,0.32142049,42110.0,42109.0,0.71175763]
[1642673705382,0.32242049,42110.0,42109.0,0.71175763]
[1642673706436,0.32142049,42110.0,42109.0,0.66675763]
[1642673706834,0.32142049,42110.0,42109.0,0.62600178]
[1642673707237,0.32242049,42110.0,42109.0,0.67200178]
[1642673708636,0.32142049,42110.0,42109.0,0.62600178]
[1642673709437,0.3795462,42110.0,42109.0,0.67200178]
[1642673709636,0.43667191,42110.0,42109.0,0.67200178]
[1642673710288,0.43667191,42110.0,42109.0,0.66356459]
[1642673710585,0.43567191,42110.0,42109.0,0.61163359]
[1642673711386,0.43567191,42110.0,42109.0,0.63263359]
[1642673712486,0.43567191,42110.0,42109.0,0.61163359]
[1642673713287,0.43567191,42110.0,42109.0,0.63263359]
[1642673713937,0.43567191,42110.0,42109.0,0.89370798]
[1642673714338,0.43567191,42110.0,42109.0,0.88784624]
[1642673714639,0.43567191,42110.0,42109.0,0.86684624]
[1642673715343,0.43567191,42110.0,42109.0,0.62763359]
[1642673715740,0.43567191,42110.0,42109.0,0.88515047]
[1642673716541,0.43567191,42110.0,42109.0,0.61163359]
[1642673717042,0.43567191,42110.0,42109.0,0.87126529]
[1642673717246,0.43567191,42110.0,42109.0,0.87214356]
[1642673717487,0.43567191,42110.0,42109.0,0.63363359]
[1642673718689,0.43567191,42110.0,42109.0,0.61163359]
[1642673719289,0.43567191,42110.0,42109.0,0.63463359]
[1642673719789,0.43567191,42110.0,42109.0,0.68463359]
[1642673720190,0.43567191,42110.0,42109.0,0.68382629]
[1642673720589,0.43567191,42110.0,42109.0,0.66082629]
[1642673721233,0.43567191,42110.0,42109.0,0.68482629]
[1642673722636,0.43567191,42110.0,42109.0,0.66082629]
[1642673723440,0.43567191,42110.0,42109.0,0.68482629]
[1642673723642,0.43567191,42110.0,42109.0,0.52315631]
[1642673723841,0.43567191,42110.0,42109.0,0.47396361]
[1642673724042,0.43567191,42110.0,42109.0,0.63562969]
[1642673724743,0.43567191,42110.0,42109.0,0.61162969]
[1642673725386,0.4355867,42110.0,42109.0,0.63262969]
[1642673726588,0.4355867,42110.0,42109.0,0.61162969]
[1642673727190,0.4355867,42110.0,42109.0,0.44996361]
[1642673727391,0.4355867,42110.0,42109.0,0.63362801]
[1642673728392,0.43551768,42110.0,42109.0,0.63362801]
[1642673728635,0.43551768,42110.0,42109.0,0.61162801]
[1642673729437,0.43551768,42110.0,42109.0,0.63362801]
[1642673729638,0.43551768,42110.0,42109.0,0.68362801]
[1642673730639,0.43551768,42110.0,42109.0,0.66162801]
[1642673730842,0.43551768,42110.0,42109.0,0.92018443]
[1642673731039,0.35766163,42110.0,42109.0,0.66162801]
[1642673731438,0.35766163,42110.0,42109.0,0.68262801]
[1642673731938,0.35766163,42110.0,42109.0,0.93568851]
[1642673732137,0.35766163,42110.0,42109.0,0.68262801]
[1642673732387,0.35766163,42110.0,42109.0,0.9426446]
[1642673732589,0.35766163,42110.0,42109.0,0.66162801]
[1642673733087,0.35766163,42110.0,42109.0,0.91500699]
[1642673733288,0.35766163,42110.0,42109.0,0.66162801]
[1642673733496,0.35766163,42110.0,42109.0,0.68562801]
[1642673734487,0.35766163,42110.0,42109.0,0.66162801]
[1642673734686,0.35766163,42110.0,42109.0,0.61162801]
[1642673735288,0.35766163,42110.0,42109.0,0.63662801]
[1642673735688,0.35766163,42110.0,42109.0,0.47496361]
[1642673736635,0.35766163,42110.0,42109.0,0.44996361]
[1642673737435,0.35766163,42110.0,42109.0,0.47496361]
[1642673738643,0.35766163,42110.0,42109.0,0.44996361]
[1642673738838,0.35766163,42110.0,42109.0,0.61163214]
[1642673739037,0.35766163,42110.0,42109.0,0.44996361]
[1642673739438,0.36066163,42110.0,42109.0,0.47296361]
[1642673740683,0.35766163,42110.0,42109.0,0.44996361]
[1642673741291,0.35766163,42110.0,42109.0,0.47196361]
[1642673742585,0.35766163,42110.0,42109.0,0.44996361]
[1642673743387,0.36066163,42110.0,42109.0,0.47296361]
[1642673744633,0.35766163,42110.0,42109.0,0.44996361]
[1642673745433,0.3377234,42110.0,42109.0,0.47396361]
[1642673746235,0.3377234,42110.0,42109.0,0.47375677]
[1642673746447,0.6350536,42110.0,42109.0,0.09026177]
[1642673746636,0.38284492,42110.0,42109.0,0.00034017]
[1642673747034,2.8869447,42110.0,42109.0,0.00034017]
[1642673747487,2.8979447,42110.0,42109.0,0.00034017]
[1642673748687,2.8869447,42110.0,42109.0,0.00034017]
[1642673749490,2.9979447,42110.0,42109.0,0.00034017]
[1642673750597,2.9979447,42110.0,42107.0,0.00020679]
[1642673750598,0.591218,42109.0,42107.0,0.00020679]
[1642673750792,0.33583562,42108.0,42107.0,0.00020679]
[1642673750991,0.72062968,42108.0,42107.0,0.00020679]
[1642673751238,0.77775539,42108.0,42107.0,0.00020679]
[1642673751442,0.8448811,42108.0,42101.0,0.01]
[1642673751644,0.28988775,42104.0,42101.0,0.01]
[1642673751840,0.28988775,42104.0,42102.0,0.00012033]
[1642673753041,0.5640373,42104.0,42102.0,0.00012033]
[1642673753541,0.5730373,42104.0,42102.0,0.01212033]
[1642673753942,0.29888775,42104.0,42103.0,0.00010314]
[1642673754743,0.28988775,42104.0,42103.0,0.00010314]
[1642673755402,0.36588775,42104.0,42103.0,0.00010314]
[1642673756396,0.36588775,42104.0,42103.0,0.00053144]
[1642673756600,0.48013917,42104.0,42103.0,0.00053144]
[1642673756801,0.40413917,42104.0,42103.0,0.00053144]
[1642673757000,0.68553241,42104.0,42103.0,0.00053144]
[1642673757400,0.44113917,42104.0,42103.0,0.00053144]
[1642673758636,0.40413917,42104.0,42103.0,0.00053144]
[1642673759442,0.41913917,42104.0,42103.0,0.00053144]
[1642673759837,0.41913917,42104.0,42103.0,0.00095077]
[1642673760438,0.80263417,42104.0,42103.0,0.00095077]
[1642673760637,0.88998951,42104.0,42103.0,0.00095077]
[1642673760839,0.78763417,42104.0,42103.0,0.00095077]
[1642673761037,0.89016145,42104.0,42103.0,0.00095077]
[1642673761237,0.78763417,42104.0,42103.0,0.00095077]
[1642673761439,0.82263417,42104.0,42103.0,0.00095077]
[1642673762692,0.78763417,42104.0,42103.0,0.00095077]
[1642673762894,0.8996369,42104.0,42103.0,0.00095077]
[1642673763496,0.9346369,42104.0,42103.0,0.00095077]
[1642673763893,0.82384575,42104.0,42103.0,0.00095077]
[1642673764702,0.83884575,42104.0,42103.0,0.00095077]
[1642673764896,1.00131919,42104.0,42103.0,0.00095077]
[1642673765396,1.01431919,42104.0,42103.0,0.00095077]
[1642673765796,1.01221919,42104.0,42103.0,0.00095077]
[1642673766642,0.99921919,42104.0,42103.0,0.00095077]
[1642673767438,1.01021919,42104.0,42103.0,0.00095077]
[1642673768744,0.99921919,42104.0,42103.0,0.00095077]
[1642673769543,1.01021919,42104.0,42103.0,0.00095077]
[1642673770792,0.99921919,42104.0,42103.0,0.00095077]
[1642673771394,1.01121919,42104.0,42103.0,0.00095077]
[1642673771792,1.01121919,42104.0,42101.0,0.00254287]
[1642673771793,1.091218,42103.0,42101.0,0.00254287]
[1642673771993,1.09000577,42102.0,42101.0,0.00375353]
[1642673772193,0.87350077,42102.0,42101.0,0.00375353]
[1642673772398,1.03062648,42102.0,42101.0,0.00375353]
[1642673772594,1.08775219,42102.0,42101.0,0.00375353]
[1642673773094,1.16526622,42102.0,42101.0,0.00254287]
[1642673773491,1.10075219,42102.0,42101.0,0.00254287]
[1642673774741,1.08775219,42102.0,42101.0,0.00254287]
[1642673775539,1.10175219,42102.0,42101.0,0.00254287]